[Event "GrandPrix_30.05"]
[Site "Chess.com"]
[Date "2020.05.30"]
[Round "6"]
[White "VerdeNotte"]
[Black "Saxar85"]
[Result "0-1"]
[WhiteElo "2607"]
[BlackElo "2489"]
[TimeControl "600+2"]
[EndTime "10:57:45 PDT"]
[Termination "Saxar85 won by resignation"]

1. e4 {[%clk 0:10:01.9]} 1... d6 {[%clk 0:08:44.1]} 2. d4 {[%clk 0:10:01.4]}
2... g6 {[%clk 0:08:43.3]} 3. Nc3 {[%clk 0:10:02]} 3... Bg7 {[%clk 0:08:43.4]}
4. Be3 {[%clk 0:10:03.2]} 4... a6 {[%clk 0:08:43.6]} 5. Qd2 {[%clk 0:10:03.3]}
5... b5 {[%clk 0:08:44.3]} 6. h4 {[%clk 0:09:58.2]} 6... Nf6 {[%clk 0:08:40]} 7.
Bh6 {[%clk 0:09:46.4]} 7... Bxh6 {[%clk 0:08:26.2]} 8. Qxh6 {[%clk 0:09:46.1]}
8... Nbd7 {[%clk 0:08:05.2]} 9. e5 {[%clk 0:08:39.7]} 9... dxe5 {[%clk
0:07:57.1]} 10. dxe5 {[%clk 0:08:37.5]} 10... Nxe5 {[%clk 0:07:54.7]} 11. Rd1
{[%clk 0:08:32.9]} 11... Bd7 {[%clk 0:07:48.2]} 12. Be2 {[%clk 0:08:05.8]} 12...
c6 {[%clk 0:07:24.3]} 13. h5 {[%clk 0:07:40]} 13... Qc7 {[%clk 0:07:10.8]} 14.
hxg6 {[%clk 0:07:35.5]} 14... fxg6 {[%clk 0:07:09]} 15. Nf3 {[%clk 0:07:14.4]}
15... O-O-O {[%clk 0:06:58.6]} 16. Qe3 {[%clk 0:06:59]} 16... Nfg4 {[%clk
0:05:53.7]} 17. Qc5 {[%clk 0:06:53.3]} 17... h5 {[%clk 0:05:36]} 18. Nxe5 {[%clk
0:06:29.5]} 18... Nxe5 {[%clk 0:05:31.7]} 19. a4 {[%clk 0:05:58.1]} 19... Bg4
{[%clk 0:04:13.9]} 20. axb5 {[%clk 0:05:50.2]} 20... cxb5 {[%clk 0:03:50.5]} 21.
Qxc7+ {[%clk 0:05:42.1]} 21... Kxc7 {[%clk 0:03:50.4]} 22. Nd5+ {[%clk
0:05:23.5]} 22... Kb7 {[%clk 0:03:47.3]} 23. Bxg4 {[%clk 0:04:42.2]} 23... Nxg4
{[%clk 0:03:40.3]} 24. Ke2 {[%clk 0:04:25]} 24... Rd6 {[%clk 0:03:24]} 25. f3
{[%clk 0:04:16.2]} 25... Rhd8 {[%clk 0:02:36.8]} 26. fxg4 {[%clk 0:03:49.8]}
26... Rxd5 {[%clk 0:02:36.1]} 27. Rxd5 {[%clk 0:03:43.2]} 27... Rxd5 {[%clk
0:02:36.7]} 28. gxh5 {[%clk 0:03:44]} 28... gxh5 {[%clk 0:02:37.3]} 29. b4
{[%clk 0:03:34.2]} 29... Rg5 {[%clk 0:02:13.7]} 30. Kf3 {[%clk 0:03:27.9]} 30...
Kc7 {[%clk 0:02:11.4]} 31. Rh4 {[%clk 0:03:13.4]} 31... Kd6 {[%clk 0:02:07.8]}
32. g3 {[%clk 0:03:00.2]} 32... e5 {[%clk 0:01:58.9]} 33. c3 {[%clk 0:02:35.8]}
33... Kd5 {[%clk 0:01:53.8]} 34. Kf2 {[%clk 0:02:30.1]} 34... e4 {[%clk
0:01:49.9]} 35. Rf4 {[%clk 0:02:10.6]} 35... Kc4 {[%clk 0:01:32.5]} 36. Rxe4+
{[%clk 0:02:09.2]} 36... Kxc3 {[%clk 0:01:32.9]} 37. Kf3 {[%clk 0:02:05.4]}
37... Kb3 {[%clk 0:01:33.4]} 38. Re6 {[%clk 0:01:59]} 38... Kxb4 {[%clk
0:01:26.8]} 39. Rxa6 {[%clk 0:02:00.1]} 39... Kb3 {[%clk 0:01:22.8]} 40. Rh6
{[%clk 0:01:58]} 40... b4 {[%clk 0:01:18.9]} 41. Kf4 {[%clk 0:01:59]} 41... Rb5
{[%clk 0:01:14.7]} 42. Ke3 {[%clk 0:01:56.4]} 42... Kb2 {[%clk 0:01:11.4]} 43.
Kd3 {[%clk 0:01:50.7]} 43... b3 {[%clk 0:01:10.4]} 44. Rf6 {[%clk 0:01:30.7]}
44... Rg5 {[%clk 0:00:47.7]} 45. Rf2+ {[%clk 0:00:31.2]} 45... Ka3 {[%clk
0:00:48.2]} 46. Kd2 {[%clk 0:00:16.3]} 46... Rxg3 {[%clk 0:00:45.3]} 47. Rf8
{[%clk 0:00:15.4]} 47... h4 {[%clk 0:00:38.3]} 48. Ra8+ {[%clk 0:00:12.9]} 48...
Kb2 {[%clk 0:00:39]} 49. Rh8 {[%clk 0:00:14]} 49... h3 {[%clk 0:00:39.5]} 50.
Rh7 {[%clk 0:00:11.9]} 50... Rg2+ {[%clk 0:00:35.8]} 51. Ke3 {[%clk 0:00:08.7]}
51... h2 {[%clk 0:00:36.2]} 52. Kf3 {[%clk 0:00:10]} 52... Rc2 {[%clk
0:00:34.9]} 53. Ke3 {[%clk 0:00:10.9]} 53... Kc1 {[%clk 0:00:35.1]} 54. Ra7
{[%clk 0:00:11.8]} 54... b2 {[%clk 0:00:33.8]} 0-1

[Event "GrandPrix_30.05"]
[Site "Chess.com"]
[Date "2020.05.30"]
[Round "6"]
[White "cukus"]
[Black "Magicmaster17"]
[Result "0-1"]
[WhiteElo "2194"]
[BlackElo "2392"]
[TimeControl "600+2"]
[EndTime "10:57:49 PDT"]
[Termination "Magicmaster17 won by resignation"]

1. e4 {[%clk 0:10:01.9]} 1... c5 {[%clk 0:09:34.8]} 2. Nf3 {[%clk 0:09:53.5]}
2... d6 {[%clk 0:09:36.1]} 3. d4 {[%clk 0:09:53.2]} 3... Nf6 {[%clk 0:09:37.3]}
4. Nc3 {[%clk 0:09:52.9]} 4... cxd4 {[%clk 0:09:38.4]} 5. Nxd4 {[%clk
0:09:54.8]} 5... e5 {[%clk 0:09:39.4]} 6. Bb5+ {[%clk 0:09:34.1]} 6... Nbd7
{[%clk 0:09:40]} 7. Nf5 {[%clk 0:09:25]} 7... a6 {[%clk 0:09:41]} 8. Bxd7+
{[%clk 0:09:17.4]} 8... Qxd7 {[%clk 0:09:41.9]} 9. Ne3 {[%clk 0:09:18.5]} 9...
Qc6 {[%clk 0:09:28.7]} 10. f3 {[%clk 0:09:14.4]} 10... Be6 {[%clk 0:09:23.9]}
11. O-O {[%clk 0:09:10.1]} 11... Be7 {[%clk 0:09:06.5]} 12. Kh1 {[%clk
0:09:07.1]} 12... O-O {[%clk 0:08:54.6]} 13. Ned5 {[%clk 0:09:07.7]} 13... Bxd5
{[%clk 0:08:10.4]} 14. Nxd5 {[%clk 0:09:06.2]} 14... Nxd5 {[%clk 0:08:11.2]} 15.
exd5 {[%clk 0:09:05.3]} 15... Qc5 {[%clk 0:07:36.6]} 16. Qd3 {[%clk 0:08:39.6]}
16... Rac8 {[%clk 0:07:36.9]} 17. c3 {[%clk 0:08:38.1]} 17... f5 {[%clk
0:07:34.1]} 18. Be3 {[%clk 0:08:36.7]} 18... Qc4 {[%clk 0:07:33.2]} 19. Qd2
{[%clk 0:08:13]} 19... Bf6 {[%clk 0:07:19.9]} 20. a4 {[%clk 0:07:56.3]} 20...
Rfe8 {[%clk 0:05:47.1]} 21. a5 {[%clk 0:07:51.7]} 21... f4 {[%clk 0:05:19.6]}
22. Bb6 {[%clk 0:07:41.9]} 22... g5 {[%clk 0:05:21.1]} 23. Qd1 {[%clk
0:06:50.4]} 23... Qb5 {[%clk 0:04:30]} 24. Rf2 {[%clk 0:06:03.6]} 24... e4
{[%clk 0:04:23]} 25. fxe4 {[%clk 0:06:00.2]} 25... Rxe4 {[%clk 0:04:24.9]} 26.
h4 {[%clk 0:05:20.4]} 26... h6 {[%clk 0:03:27.1]} 27. Qg4 {[%clk 0:05:05.5]}
27... Rce8 {[%clk 0:03:27.3]} 28. Qf5 {[%clk 0:05:01]} 28... Kg7 {[%clk
0:03:18.6]} 29. h5 {[%clk 0:04:58.9]} 29... Re1+ {[%clk 0:02:40.2]} 30. Rxe1
{[%clk 0:04:58.5]} 30... Rxe1+ {[%clk 0:02:41]} 31. Kh2 {[%clk 0:04:59.8]} 31...
Qe8 {[%clk 0:02:42.7]} 32. Qg4 {[%clk 0:04:32.1]} 32... Be5 {[%clk 0:02:18.6]}
33. Rf3 {[%clk 0:04:19.1]} 33... Qf7 {[%clk 0:01:57.5]} 34. b4 {[%clk
0:04:03.9]} 34... Qxd5 {[%clk 0:01:49.6]} 35. Bd4 {[%clk 0:03:59.1]} 35... Bxd4
{[%clk 0:01:34.7]} 36. cxd4 {[%clk 0:03:57.7]} 36... Qxd4 {[%clk 0:01:29.2]} 37.
Qd7+ {[%clk 0:03:54.8]} 37... Kf6 {[%clk 0:01:27]} 38. Qd8+ {[%clk 0:03:54.7]}
38... Kf7 {[%clk 0:00:58.2]} 39. Qd7+ {[%clk 0:03:55.3]} 39... Re7 {[%clk
0:00:58.9]} 40. Qf5+ {[%clk 0:03:55.7]} 40... Qf6 {[%clk 0:00:59.9]} 41. Qd5+
{[%clk 0:03:52.6]} 41... Qe6 {[%clk 0:01:00.1]} 42. Qd3 {[%clk 0:03:52.6]} 42...
Kg7 {[%clk 0:00:56.5]} 43. Qc3+ {[%clk 0:03:52.2]} 43... Qf6 {[%clk 0:00:57.5]}
44. Qc4 {[%clk 0:03:49.2]} 44... Qf7 {[%clk 0:00:51.6]} 45. Qd4+ {[%clk
0:03:49.2]} 45... Qf6 {[%clk 0:00:48.2]} 46. Qc4 {[%clk 0:03:49.5]} 46... Rf7
{[%clk 0:00:48.4]} 47. b5 {[%clk 0:03:22.6]} 47... g4 {[%clk 0:00:48.5]} 48. Rf1
{[%clk 0:03:22.9]} 48... Qh4+ {[%clk 0:00:34.1]} 49. Kg1 {[%clk 0:03:23.6]}
49... g3 {[%clk 0:00:35.6]} 50. Qc3+ {[%clk 0:03:14.6]} 50... Qf6 {[%clk
0:00:35.9]} 51. Qd3 {[%clk 0:03:01]} 51... axb5 {[%clk 0:00:35.5]} 52. Qxb5
{[%clk 0:02:38]} 52... Qe5 {[%clk 0:00:35.5]} 53. Qc4 {[%clk 0:02:27.7]} 53...
Qxh5 {[%clk 0:00:29.3]} 54. Qd4+ {[%clk 0:02:27.1]} 54... Qe5 {[%clk 0:00:29.7]}
55. Rd1 {[%clk 0:01:57]} 55... Re7 {[%clk 0:00:22.4]} 56. Qxe5+ {[%clk
0:01:50.8]} 56... dxe5 {[%clk 0:00:23.1]} 57. Kf1 {[%clk 0:01:51]} 57... Kf6
{[%clk 0:00:22.7]} 58. Ke2 {[%clk 0:01:51]} 58... Rc7 {[%clk 0:00:22.7]} 59. Ra1
{[%clk 0:01:36.3]} 59... Kf5 {[%clk 0:00:23.4]} 60. a6 {[%clk 0:01:33.7]} 60...
bxa6 {[%clk 0:00:23.7]} 61. Rxa6 {[%clk 0:01:35.6]} 61... Rc2+ {[%clk 0:00:25]}
62. Kf1 {[%clk 0:01:35.8]} 62... h5 {[%clk 0:00:24.2]} 63. Rb6 {[%clk
0:01:35.7]} 63... h4 {[%clk 0:00:24.7]} 64. Rh6 {[%clk 0:01:35.6]} 64... Ke4
{[%clk 0:00:24.4]} 65. Rh5 {[%clk 0:01:31.2]} 65... h3 {[%clk 0:00:21.9]} 66.
gxh3 {[%clk 0:01:27]} 66... Kf3 {[%clk 0:00:21.3]} 67. Ke1 {[%clk 0:01:23.2]}
67... g2 {[%clk 0:00:21.2]} 68. Rg5 {[%clk 0:01:23.5]} 68... Rc1+ {[%clk
0:00:21.6]} 0-1

[Event "GrandPrix_30.05"]
[Site "Chess.com"]
[Date "2020.05.30"]
[Round "6"]
[White "Sunerorlater"]
[Black "Zubrrr"]
[Result "1/2-1/2"]
[WhiteElo "2307"]
[BlackElo "2526"]
[TimeControl "600+2"]
[EndTime "10:57:56 PDT"]
[Termination "Game drawn by agreement"]

1. d4 {[%clk 0:09:51.7]} 1... f5 {[%clk 0:09:58.8]} 2. g3 {[%clk 0:09:48.8]}
2... Nf6 {[%clk 0:09:58.9]} 3. Bg2 {[%clk 0:09:49.2]} 3... g6 {[%clk 0:09:59.8]}
4. c3 {[%clk 0:09:49.5]} 4... Bg7 {[%clk 0:10:00.8]} 5. Qb3 {[%clk 0:09:50]}
5... Nc6 {[%clk 0:10:01.8]} 6. Nd2 {[%clk 0:09:43.9]} 6... e5 {[%clk 0:08:36.5]}
7. dxe5 {[%clk 0:09:35]} 7... Nxe5 {[%clk 0:08:36.7]} 8. Ngf3 {[%clk 0:09:13.8]}
8... Nf7 {[%clk 0:08:27.8]} 9. O-O {[%clk 0:08:07.4]} 9... d5 {[%clk 0:08:23.7]}
10. c4 {[%clk 0:08:05.6]} 10... O-O {[%clk 0:08:21.9]} 11. cxd5 {[%clk
0:08:02.8]} 11... Qxd5 {[%clk 0:08:21.6]} 12. Qxd5 {[%clk 0:07:04]} 12... Nxd5
{[%clk 0:08:22]} 13. Rd1 {[%clk 0:06:41.2]} 13... Nb6 {[%clk 0:07:54]} 14. Nb3
{[%clk 0:06:35.8]} 14... Na4 {[%clk 0:07:36.2]} 15. Rb1 {[%clk 0:06:25.4]} 15...
c6 {[%clk 0:07:25.6]} 16. Nfd4 {[%clk 0:06:09]} 16... Bd7 {[%clk 0:05:57.2]} 17.
Be3 {[%clk 0:04:36.4]} 17... Rad8 {[%clk 0:05:42]} 18. Rdc1 {[%clk 0:04:16.3]}
18... Bc8 {[%clk 0:05:27.3]} 19. Rc4 {[%clk 0:04:03.6]} 19... Nb6 {[%clk
0:05:25.8]} 20. Rc2 {[%clk 0:04:04.5]} 20... Rfe8 {[%clk 0:04:26.8]} 21. h3
{[%clk 0:02:57.4]} 21... g5 {[%clk 0:03:37]} 22. Rd1 {[%clk 0:02:49.3]} 22... h6
{[%clk 0:03:01.1]} 23. Rdd2 {[%clk 0:01:42.9]} 23... Nd5 {[%clk 0:02:45]} 24.
Bxd5 {[%clk 0:01:43]} 24... Rxd5 {[%clk 0:02:46.9]} 25. Nf3 {[%clk 0:01:37.3]}
25... Rxd2 {[%clk 0:02:28.5]} 26. Rxd2 {[%clk 0:01:36.5]} 26... b6 {[%clk
0:02:26.6]} 27. Bd4 {[%clk 0:01:31.1]} 27... Bf8 {[%clk 0:02:12.9]} 28. Bc3
{[%clk 0:01:25.2]} 28... c5 {[%clk 0:02:13.2]} 29. Nc1 {[%clk 0:01:14.2]} 29...
Bd6 {[%clk 0:01:31.4]} 30. b3 {[%clk 0:01:09.5]} 30... Bc7 {[%clk 0:01:31.8]}
31. Nd3 {[%clk 0:01:01.5]} 31... Bb7 {[%clk 0:01:10.6]} 32. Nde1 {[%clk
0:00:59.4]} 32... Bc6 {[%clk 0:00:48.4]} 33. h4 {[%clk 0:00:46.2]} 33... g4
{[%clk 0:00:35.1]} 34. Nh2 {[%clk 0:00:47.1]} 34... Nd6 {[%clk 0:00:29.4]} 35.
Bb2 {[%clk 0:00:31.5]} 35... Ne4 {[%clk 0:00:28.8]} 36. Rc2 {[%clk 0:00:32.2]}
36... h5 {[%clk 0:00:27.1]} 37. Nd3 {[%clk 0:00:32.3]} 37... Bb5 {[%clk
0:00:24]} 38. Nf4 {[%clk 0:00:24]} 38... Bxf4 {[%clk 0:00:20.5]} 39. gxf4 {[%clk
0:00:24.8]} 39... g3 {[%clk 0:00:13.4]} 40. fxg3 {[%clk 0:00:25.3]} 40... Nxg3
{[%clk 0:00:15]} 41. Be5 {[%clk 0:00:24.7]} 41... Nxe2+ {[%clk 0:00:14.8]} 42.
Kf2 {[%clk 0:00:23.6]} 42... Nd4 {[%clk 0:00:14.9]} 43. Rd2 {[%clk 0:00:18.3]}
43... Kf7 {[%clk 0:00:11.1]} 44. Nf3 {[%clk 0:00:15.4]} 44... Nxf3 {[%clk
0:00:11.9]} 45. Kxf3 {[%clk 0:00:16.4]} 45... Rg8 {[%clk 0:00:08.9]} 1/2-1/2

[Event "GrandPrix_30.05"]
[Site "Chess.com"]
[Date "2020.05.30"]
[Round "6"]
[White "lilleper1"]
[Black "Alex_Krayz"]
[Result "1-0"]
[WhiteElo "2382"]
[BlackElo "2192"]
[TimeControl "600+2"]
[EndTime "10:57:59 PDT"]
[Termination "lilleper1 won by resignation"]

1. d4 {[%clk 0:10:00.8]} 1... Nf6 {[%clk 0:09:59.4]} 2. c4 {[%clk 0:10:01.8]}
2... e6 {[%clk 0:10:00.2]} 3. Nf3 {[%clk 0:10:02.8]} 3... b6 {[%clk 0:10:00.3]}
4. g3 {[%clk 0:10:03.7]} 4... Ba6 {[%clk 0:10:00.2]} 5. Qa4 {[%clk 0:10:01.9]}
5... Bb7 {[%clk 0:09:54.7]} 6. Bg2 {[%clk 0:10:01.9]} 6... c5 {[%clk 0:09:54.8]}
7. dxc5 {[%clk 0:10:01.5]} 7... Bxc5 {[%clk 0:09:46.3]} 8. O-O {[%clk
0:10:01.8]} 8... O-O {[%clk 0:09:40.4]} 9. Nc3 {[%clk 0:10:02.4]} 9... a6 {[%clk
0:09:28.8]} 10. Bf4 {[%clk 0:09:51.7]} 10... Be7 {[%clk 0:09:12.4]} 11. Rfd1
{[%clk 0:09:46.4]} 11... d6 {[%clk 0:09:11.2]} 12. Qa3 {[%clk 0:07:59.1]} 12...
Ne8 {[%clk 0:08:54.4]} 13. Qb3 {[%clk 0:07:50.3]} 13... Qc7 {[%clk 0:08:49.4]}
14. Rac1 {[%clk 0:07:36.8]} 14... Nf6 {[%clk 0:08:32]} 15. c5 {[%clk 0:06:50.2]}
15... bxc5 {[%clk 0:08:07.7]} 16. Na4 {[%clk 0:05:05.7]} 16... Nbd7 {[%clk
0:07:44.8]} 17. Qa3 {[%clk 0:05:04.3]} 17... a5 {[%clk 0:07:17.5]} 18. Nd2
{[%clk 0:04:32.5]} 18... Bxg2 {[%clk 0:07:14.3]} 19. Kxg2 {[%clk 0:04:34.4]}
19... Nd5 {[%clk 0:06:08.4]} 20. Qf3 {[%clk 0:04:03.5]} 20... Nxf4+ {[%clk
0:05:56.2]} 21. gxf4 {[%clk 0:04:04.2]} 21... Rab8 {[%clk 0:05:45.4]} 22. b3
{[%clk 0:04:05.3]} 22... Nb6 {[%clk 0:05:22.9]} 23. Nc3 {[%clk 0:03:56.3]} 23...
Qb7 {[%clk 0:05:02.8]} 24. Qxb7 {[%clk 0:03:01.3]} 24... Rxb7 {[%clk 0:05:01.3]}
25. a4 {[%clk 0:02:58.2]} 25... f5 {[%clk 0:03:54.3]} 26. Nb5 {[%clk 0:02:53.4]}
26... Nd5 {[%clk 0:03:11.7]} 27. e3 {[%clk 0:02:20]} 27... Nc7 {[%clk
0:03:05.5]} 28. Nxc7 {[%clk 0:02:10.6]} 28... Rxc7 {[%clk 0:03:05.2]} 29. Nc4
{[%clk 0:02:11.5]} 29... d5 {[%clk 0:03:05.8]} 30. Na3 {[%clk 0:01:14.6]} 30...
Kf7 {[%clk 0:02:12.7]} 31. Nb5 {[%clk 0:01:14.6]} 31... Rc6 {[%clk 0:02:04.5]}
32. Rc2 {[%clk 0:01:15.6]} 32... g5 {[%clk 0:01:59]} 33. fxg5 {[%clk 0:01:01]}
33... Bxg5 {[%clk 0:01:58.5]} 34. f4 {[%clk 0:01:02.4]} 34... Be7 {[%clk
0:01:52.4]} 35. Kf3 {[%clk 0:01:03.4]} 35... Rg8 {[%clk 0:01:51.8]} 36. Rdc1
{[%clk 0:01:02.2]} 36... Rg6 {[%clk 0:01:48.3]} 37. Rg2 {[%clk 0:00:55.5]} 37...
Rc8 {[%clk 0:01:34.9]} 38. Rg3 {[%clk 0:00:44.5]} 38... c4 {[%clk 0:01:22.1]}
39. bxc4 {[%clk 0:00:43.5]} 39... Rxc4 {[%clk 0:01:18.6]} 40. Rxc4 {[%clk
0:00:37.3]} 40... dxc4 {[%clk 0:01:17.6]} 41. Rxg6 {[%clk 0:00:35.3]} 41... hxg6
{[%clk 0:01:13.7]} 42. Ke2 {[%clk 0:00:25.1]} 42... Bb4 {[%clk 0:01:03.5]} 43.
Nd4 {[%clk 0:00:25.4]} 43... Kf6 {[%clk 0:00:58.7]} 44. Nc6 {[%clk 0:00:26.1]}
44... Bc3 {[%clk 0:00:57]} 45. Kd1 {[%clk 0:00:23.4]} 45... g5 {[%clk
0:00:52.3]} 46. fxg5+ {[%clk 0:00:19.2]} 46... Kxg5 {[%clk 0:00:52.8]} 47. Kc2
{[%clk 0:00:20.8]} 47... Be1 {[%clk 0:00:51.6]} 48. Ne5 {[%clk 0:00:21.7]} 48...
c3 {[%clk 0:00:37.2]} 49. Nf3+ {[%clk 0:00:22.4]} 49... Kg4 {[%clk 0:00:37.4]}
50. Nxe1 {[%clk 0:00:23.4]} 50... Kh3 {[%clk 0:00:38.3]} 51. Kxc3 {[%clk
0:00:24.3]} 51... Kxh2 {[%clk 0:00:39.1]} 52. Kd4 {[%clk 0:00:25.5]} 52... Kg3
{[%clk 0:00:38.9]} 53. Nd3 {[%clk 0:00:24.1]} 53... Kf3 {[%clk 0:00:38]} 54.
Ne5+ {[%clk 0:00:25.1]} 54... Ke2 {[%clk 0:00:38.4]} 55. Nc4 {[%clk 0:00:23.7]}
1-0

[Event "GrandPrix_30.05"]
[Site "Chess.com"]
[Date "2020.05.30"]
[Round "6"]
[White "SantoBlue"]
[Black "TimofeevAr"]
[Result "1-0"]
[WhiteElo "2578"]
[BlackElo "2604"]
[TimeControl "600+2"]
[EndTime "10:58:00 PDT"]
[Termination "SantoBlue won by resignation"]

1. Nf3 {[%clk 0:10:01.9]} 1... Nf6 {[%clk 0:09:59.8]} 2. g3 {[%clk 0:09:57.9]}
2... g6 {[%clk 0:10:00.4]} 3. b3 {[%clk 0:09:57.8]} 3... Bg7 {[%clk 0:10:00.7]}
4. Bb2 {[%clk 0:09:59.7]} 4... O-O {[%clk 0:10:01.4]} 5. Bg2 {[%clk 0:10:00.4]}
5... d5 {[%clk 0:10:01.9]} 6. c4 {[%clk 0:09:44.1]} 6... e6 {[%clk 0:09:36.2]}
7. O-O {[%clk 0:09:38]} 7... a5 {[%clk 0:09:36.7]} 8. d3 {[%clk 0:08:56.2]} 8...
Nc6 {[%clk 0:09:30.8]} 9. Nc3 {[%clk 0:08:35.9]} 9... b6 {[%clk 0:08:29.6]} 10.
Nb5 {[%clk 0:08:26.6]} 10... Bb7 {[%clk 0:08:12.5]} 11. Rc1 {[%clk 0:08:26.3]}
11... Na7 {[%clk 0:08:08.9]} 12. Nxa7 {[%clk 0:08:03.1]} 12... Rxa7 {[%clk
0:08:08.3]} 13. cxd5 {[%clk 0:07:27]} 13... Bxd5 {[%clk 0:07:40.7]} 14. e4
{[%clk 0:06:40.1]} 14... Ba8 {[%clk 0:07:39.1]} 15. Ne5 {[%clk 0:06:29.3]} 15...
c5 {[%clk 0:07:36.4]} 16. a4 {[%clk 0:06:23.4]} 16... Nd7 {[%clk 0:07:29.2]} 17.
Nc4 {[%clk 0:06:16]} 17... Bxb2 {[%clk 0:07:28.1]} 18. Nxb2 {[%clk 0:06:17.9]}
18... Ne5 {[%clk 0:07:28.7]} 19. Qd2 {[%clk 0:06:10.9]} 19... Rd7 {[%clk
0:07:28]} 20. Rfd1 {[%clk 0:06:06.7]} 20... Bb7 {[%clk 0:07:26.4]} 21. f4 {[%clk
0:05:55.6]} 21... Nc6 {[%clk 0:07:17.4]} 22. Nc4 {[%clk 0:05:55]} 22... Nd4
{[%clk 0:07:10.2]} 23. Qb2 {[%clk 0:05:55.5]} 23... Ba6 {[%clk 0:07:09.1]} 24.
e5 {[%clk 0:05:42.3]} 24... Nf5 {[%clk 0:07:09.5]} 25. Be4 {[%clk 0:05:39.3]}
25... Nd4 {[%clk 0:06:59.1]} 26. h4 {[%clk 0:05:25.3]} 26... f6 {[%clk
0:06:36.8]} 27. exf6 {[%clk 0:05:20.6]} 27... Bxc4 {[%clk 0:06:36.7]} 28. bxc4
{[%clk 0:05:20.4]} 28... Rd6 {[%clk 0:06:36.6]} 29. Qh2 {[%clk 0:04:22.8]} 29...
Qxf6 {[%clk 0:06:35.5]} 30. Rf1 {[%clk 0:04:17.9]} 30... e5 {[%clk 0:05:45.1]}
31. Rce1 {[%clk 0:04:01.6]} 31... Kg7 {[%clk 0:05:24.5]} 32. h5 {[%clk
0:03:47.8]} 32... Rdd8 {[%clk 0:04:32.5]} 33. Kg2 {[%clk 0:02:49.1]} 33... exf4
{[%clk 0:04:19.6]} 34. Rxf4 {[%clk 0:02:45.7]} 34... Qg5 {[%clk 0:04:12.4]} 35.
hxg6 {[%clk 0:01:15]} 35... hxg6 {[%clk 0:04:11.3]} 36. Qh4 {[%clk 0:00:10.2]}
36... Qxh4 {[%clk 0:04:04.7]} 37. Rxh4 {[%clk 0:00:10.4]} 37... Rd6 {[%clk
0:02:58.8]} 38. Reh1 {[%clk 0:00:10.7]} 38... Nf5 {[%clk 0:02:57.3]} 39. Rh7+
{[%clk 0:00:11.4]} 39... Kf6 {[%clk 0:02:58.1]} 40. Rf1 {[%clk 0:00:07.8]} 40...
Kg5 {[%clk 0:02:53.5]} 41. Rf3 {[%clk 0:00:05.1]} 41... Rdf6 {[%clk 0:02:41.1]}
42. Rb7 {[%clk 0:00:05.8]} 42... Nd6 {[%clk 0:02:34.8]} 43. Rxf6 {[%clk
0:00:06.8]} 43... Rxf6 {[%clk 0:02:35.7]} 44. Rd7 {[%clk 0:00:05.9]} 44... Kg4
{[%clk 0:02:20.6]} 45. Ba8 {[%clk 0:00:03.4]} 45... Nf5 {[%clk 0:02:19.1]} 46.
Bf3+ {[%clk 0:00:04.6]} 46... Kg5 {[%clk 0:02:19.9]} 47. Rd5 {[%clk 0:00:06.1]}
47... Kh6 {[%clk 0:02:18.6]} 48. Re5 {[%clk 0:00:07.5]} 48... Rd6 {[%clk
0:02:17.4]} 49. Be4 {[%clk 0:00:07.8]} 49... Ne3+ {[%clk 0:02:18.1]} 50. Kf3
{[%clk 0:00:06.2]} 50... Nd1 {[%clk 0:02:19.1]} 51. g4 {[%clk 0:00:04.7]} 51...
Nc3 {[%clk 0:02:14.7]} 52. g5+ {[%clk 0:00:04.9]} 52... Kg7 {[%clk 0:02:15.4]}
53. Re7+ {[%clk 0:00:05.2]} 53... Kf8 {[%clk 0:02:16.6]} 54. Rb7 {[%clk
0:00:04.8]} 54... Nxa4 {[%clk 0:02:17.3]} 55. Kf4 {[%clk 0:00:05.8]} 55... Nc3
{[%clk 0:01:35.8]} 56. Ke5 {[%clk 0:00:07.1]} 56... Nxe4 {[%clk 0:01:37.2]} 57.
dxe4 {[%clk 0:00:09]} 57... Rc6 {[%clk 0:01:38.3]} 58. Kd5 {[%clk 0:00:07.5]}
58... Rc8 {[%clk 0:01:39.2]} 59. Rxb6 {[%clk 0:00:04.5]} 59... Ra8 {[%clk
0:01:40.3]} 60. Kxc5 {[%clk 0:00:03.5]} 60... a4 {[%clk 0:01:41.4]} 61. Rxg6
{[%clk 0:00:03.1]} 61... a3 {[%clk 0:01:40.2]} 62. Rh6 {[%clk 0:00:04.6]} 62...
Kg7 {[%clk 0:01:40.5]} 63. Rh1 {[%clk 0:00:05.7]} 63... Kg6 {[%clk 0:01:40.8]}
64. Kb6 {[%clk 0:00:05.6]} 64... Kxg5 {[%clk 0:01:40.8]} 65. c5 {[%clk
0:00:05.3]} 65... Kf4 {[%clk 0:01:41.7]} 66. Kb7 {[%clk 0:00:05.7]} 66... Ra4
{[%clk 0:01:41.2]} 67. c6 {[%clk 0:00:06.3]} 67... Kxe4 {[%clk 0:01:37]} 68.
Rh4+ {[%clk 0:00:06.9]} 68... Kd5 {[%clk 0:01:37.7]} 69. Rxa4 {[%clk 0:00:08.8]}
1-0